fUSD/lending_fUSD_20240220
["ID","MTS","AMOUNT","RATE_DAILY","PERIOD"]
[314608860,1708450320340,-500.0,0.00048767,30]
[314608861,1708450320350,-151.0,0.00048767,14]
[314608862,1708450320361,-500.0,0.00048767,30]
[314608863,1708450320371,-261.9046,0.00048767,14]
[314608864,1708450320383,-500.0,0.00048767,30]
[314608865,1708450320393,-500.0,0.00048767,30]
[314608866,1708450320403,-500.0,0.00048767,30]
[314608867,1708450320412,-261.9046,0.00048767,14]
[314608868,1708450320422,-500.0,0.00048767,30]
[314608869,1708450320432,-317.36512283,0.00048767,30]
[314608870,1708450320442,-500.0,0.00048767,30]
[314608871,1708450320452,-500.0,0.00048767,30]
[314608872,1708450320461,-500.0,0.00048767,30]
[314608873,1708450320471,-500.0,0.00048767,30]
[314608874,1708450320480,-500.0,0.00048767,30]
[314608875,1708450320490,-632.05038922,0.00048767,30]
[314608876,1708450320500,-151.0,0.00048767,14]
[314608877,1708450320510,-500.0,0.00048767,30]
[314608878,1708450320519,-500.0,0.00048767,30]
[314608879,1708450320528,-151.0,0.00048767,14]
[314608880,1708450320538,-161.343318,0.00048767,14]
[314608881,1708450320548,-151.0,0.00048767,14]
[314608882,1708450320558,-552.82396325,0.00048767,30]
[314608883,1708450320567,-500.0,0.00048767,30]
[314608884,1708450320577,-161.343318,0.00048767,14]
[314608885,1708450320587,-500.0,0.00048767,30]
[314608886,1708450320597,-500.0,0.00048767,30]
[314608887,1708450320606,-500.0,0.00048767,30]
[314608888,1708450320616,-632.18404789,0.00048767,30]
[314608889,1708450320630,-500.0,0.00048767,30]
[314608890,1708450320639,-500.0,0.00048767,30]
[314608891,1708450320649,-500.0,0.00048767,30]
[314608892,1708450320658,-500.0,0.00048767,30]
[314608893,1708450320668,-734.91,0.00048767,30]
[314608894,1708450320678,-500.0,0.00048767,30]
[314608895,1708450320687,-541.49068682,0.00048767,30]
[314608896,1708450320696,-500.0,0.00048767,30]
[314608897,1708450320706,-500.0,0.00048767,30]
[314608898,1708450320715,-151.0,0.00048767,14]
[314608899,1708450320724,-151.0,0.00048767,14]
[314608900,1708450320735,-500.0,0.00048767,30]
[314608901,1708450320744,-500.0,0.00048767,30]
[314608902,1708450320754,-500.0,0.00048767,30]
[314608903,1708450320763,-500.0,0.00048767,30]
[314608904,1708450320773,-275.391815,0.00048767,14]
[314608905,1708450320783,-275.391815,0.00048767,14]
[314608906,1708450320793,-500.0,0.00048767,30]
[314608907,1708450320803,-500.0,0.00048767,30]
[314608908,1708450320814,-151.0,0.00048767,14]
[314608909,1708450320824,-151.0,0.00048767,2]
[314608910,1708450320834,-500.0,0.00048767,30]
[314608911,1708450320845,-151.0,0.00048767,7]
[314608912,1708450320855,-294.929269,0.00048767,2]
[314608913,1708450320864,-500.0,0.00048767,30]
[314608914,1708450320874,-500.0,0.00048767,30]
[314608915,1708450320888,-500.0,0.00048767,30]
[314608916,1708450320898,-500.0,0.00048767,30]
[314608917,1708450320908,-500.0,0.00048767,30]
[314608918,1708450320917,-513.75,0.00048767,30]
[314608919,1708450320927,-500.0,0.00048767,30]
[314608920,1708450320938,-500.0,0.00048767,30]
[314608921,1708450320947,-500.0,0.00048767,30]
[314608922,1708450320958,-500.0,0.00048767,30]
[314608923,1708450320968,-231.03610695,0.00048767,30]
[314608924,1708450320977,-500.0,0.00048767,30]
[314608925,1708450320987,-156.1,0.00048767,30]
[314608926,1708450321169,-500.0,0.00048767,30]
[314608927,1708450321178,-485.19936003,0.00048767,30]
[314608928,1708450321188,-500.0,0.00048767,30]
[314608929,1708450321197,-150.0,0.00048767,30]
[314608930,1708450321206,-312.20773967,0.00048767,30]
[314608931,1708450321216,-500.0,0.00048767,30]
[314608932,1708450321226,-500.0,0.00048767,30]
[314608933,1708450321235,-500.0,0.00048767,30]
[314608934,1708450321245,-500.0,0.00048767,30]
[314608935,1708450321255,-500.0,0.00048767,30]
[314608936,1708450321264,-500.0,0.00048767,30]
[314608937,1708450321277,-604.0524483,0.00048767,30]
[314608938,1708450321287,-192.16969842,0.00048767,30]
[314608939,1708450321297,-500.0,0.00048767,30]
[314608940,1708450321306,-500.0,0.00048767,30]
[314608941,1708450321315,-500.0,0.00048767,30]
[314608942,1708450321326,-2166.93,0.00048767,30]
[314608943,1708450321335,-500.0,0.00048767,30]
[314608944,1708450321345,-500.0,0.00048767,30]
[314608945,1708450321355,-500.0,0.00048767,30]
[314608946,1708450321365,-207.23,0.00048767,30]
[314608947,1708450321374,-500.0,0.00048767,30]
[314608948,1708450321387,-500.0,0.00048767,30]
[314608949,1708450321396,-500.0,0.00048767,30]
[314608950,1708450321406,-219.400776,0.00048767,14]
[314608951,1708450321415,-219.400776,0.00048767,14]
[314608952,1708450321425,-500.0,0.00048767,30]
[314608953,1708450321434,-500.0,0.00048767,30]
[314608954,1708450321444,-500.0,0.00048767,30]
[314608955,1708450321455,-230.09435272,0.00048767,30]
[314608956,1708450321464,-500.0,0.00048767,30]
[314608957,1708450321474,-500.0,0.00048767,30]
[314608958,1708450321483,-500.0,0.00048767,30]
[314608959,1708450321492,-401.49706419,0.00048767,30]
[314608960,1708450321503,-500.0,0.00048767,30]
[314608961,1708450321512,-2578.86,0.00048767,30]
[314608962,1708450321522,-500.0,0.00048767,30]
[314608963,1708450321531,-622.81936027,0.00048767,30]
[314608964,1708450321541,-500.0,0.00048767,30]
[314608965,1708450321552,-500.0,0.00048767,30]
[314608966,1708450321563,-542.64,0.00048767,30]
[314608967,1708450321572,-500.0,0.00048767,30]
[314608968,1708450321582,-424.78890762,0.00048767,30]
[314608969,1708450321591,-500.0,0.00048767,30]
[314608970,1708450321601,-572.06826694,0.00048767,30]
[314608971,1708450321611,-500.0,0.00048767,30]
[314608972,1708450321622,-389.7463964,0.00048767,30]
[314608973,1708450321634,-500.0,0.00048767,30]
[314608974,1708450321644,-500.0,0.00048767,30]
[314608975,1708450321654,-5958.34,0.00048767,30]
[314608976,1708450321664,-500.0,0.00048767,30]
[314608977,1708450321673,-500.0,0.00048767,30]
[314608978,1708450321683,-500.0,0.00048767,30]
[314608979,1708450321693,-500.0,0.00048767,30]
[314608980,1708450321702,-500.0,0.00048767,30]
[314608981,1708450321712,-9351.93,0.00048767,30]
[314608982,1708450321722,-289.96412456,0.00048767,30]
[314608983,1708450321731,-500.0,0.00048767,30]
[314608984,1708450321740,-500.0,0.00048767,30]
[314608985,1708450321749,-500.0,0.00048767,30]
[314608986,1708450321759,-500.0,0.00048767,30]
[314608987,1708450321768,-500.0,0.00048767,30]
[314608988,1708450321777,-500.0,0.00048767,30]
[314608989,1708450321786,-500.0,0.00048767,30]
[314608990,1708450321795,-2403.368528,0.00048767,14]
[314608991,1708450321804,-151.0,0.00048767,14]
[314608992,1708450321813,-1749.56,0.00048767,30]
[314608993,1708450321822,-500.0,0.00048767,30]
[314608994,1708450321831,-500.0,0.00048767,30]
[314608995,1708450321840,-510.17200642,0.00048767,30]
[314608996,1708450321850,-2403.368528,0.00048767,14]
[314608997,1708450321859,-500.0,0.00048767,30]
[314608998,1708450321869,-1234.3,0.00048767,30]
[314608999,1708450321881,-500.0,0.00048767,30]
[314609000,1708450321890,-500.0,0.00048767,30]
[314609001,1708450321900,-500.0,0.00048767,30]
[314609002,1708450321910,-500.0,0.00048767,30]
[314609003,1708450321919,-500.0,0.00048767,30]
[314609004,1708450321929,-500.0,0.00048767,30]
[314609005,1708450321939,-514.34,0.00048767,30]
[314609006,1708450321949,-795.95,0.00048767,30]
[314609007,1708450321958,-574.86008452,0.00048767,30]
[314609008,1708450321969,-415.45,0.00048767,30]
[314609009,1708450321978,-500.0,0.00048767,30]
[314609010,1708450321987,-500.0,0.00048767,30]
[314609011,1708450321997,-500.0,0.00048767,30]
[314609012,1708450322006,-500.0,0.00048767,30]
[314609013,1708450322016,-500.0,0.00048767,30]
[314609014,1708450322025,-210.0,0.00048767,30]
[314609015,1708450322034,-500.0,0.00048767,30]
[314609016,1708450322043,-500.0,0.00048767,30]
[314609017,1708450322053,-500.0,0.00048767,30]
[314609018,1708450322062,-500.0,0.00048767,30]
[314609019,1708450322072,-500.0,0.00048767,30]
[314609020,1708450322082,-580.83,0.00048767,30]
[314609021,1708450322091,-500.0,0.00048767,30]
[314609022,1708450322101,-500.0,0.00048767,30]
[314609023,1708450322110,-500.0,0.00048767,30]
[314609024,1708450322120,-500.0,0.00048767,30]
[314609025,1708450322132,-500.0,0.00048767,30]
[314609026,1708450322142,-500.0,0.00048767,30]
[314609027,1708450322153,-500.0,0.00048767,30]
[314609028,1708450322163,-500.0,0.00048767,30]
[314609029,1708450322172,-4989.05,0.00048767,14]
[314609030,1708450322182,-1571.69,0.00048767,30]
[314609031,1708450322192,-4989.05,0.00048767,14]
[314609032,1708450322202,-500.0,0.00048767,30]
[314609033,1708450322212,-500.0,0.00048767,30]
[314609034,1708450322222,-889.56,0.00048767,30]
[314609035,1708450322231,-601.741696,0.00048767,14]
[314609036,1708450322241,-500.0,0.00048767,30]
[314609037,1708450322250,-500.0,0.00048767,30]
[314609038,1708450322265,-2031.89,0.00048767,30]
[314609039,1708450322275,-500.0,0.00048767,30]
[314609040,1708450322285,-601.741696,0.00048767,14]
[314609041,1708450322294,-500.0,0.00048767,30]
[314609042,1708450322306,-201.20299236,0.00048767,30]
[314609043,1708450322315,-890.15,0.00048767,30]
[314609044,1708450322325,-500.0,0.00048767,30]
[314609045,1708450322335,-3480.121309,0.00048767,14]
[314609046,1708450322346,-500.0,0.00048767,30]
[314609047,1708450322355,-1056.5,0.00048767,30]
[314609048,1708450322365,-3480.121309,0.00048767,14]
[314609049,1708450322375,-543.70871715,0.00048767,30]
[314609050,1708450322388,-1596.9,0.00048767,30]
[314609051,1708450322397,-1523.79,0.00048767,30]
[314609052,1708450322407,-1495.71,0.00048767,30]
[314609053,1708450322416,-500.0,0.00048767,30]
[314609054,1708450322425,-500.0,0.00048767,30]
[314609055,1708450322435,-482.595479,0.00048767,14]
[314609056,1708450322445,-500.0,0.00048767,30]
[314609057,1708450322454,-151.0,0.00048767,14]
[314609058,1708450322464,-584.86543882,0.00048767,30]
[314609059,1708450322473,-500.0,0.00048767,30]
[314609060,1708450322482,-482.595479,0.00048767,14]
[314609061,1708450322492,-500.0,0.00048767,30]
[314609062,1708450322501,-1097.5,0.00048767,30]
[314609063,1708450322510,-500.0,0.00048767,30]
[314609064,1708450322519,-500.0,0.00048767,30]
[314609065,1708450322529,-500.0,0.00048767,30]
[314609066,1708450322539,-585.84,0.00048767,30]
[314609067,1708450322548,-500.0,0.00048767,30]
[314609068,1708450322558,-500.0,0.00048767,30]
[314609069,1708450322569,-500.0,0.00048767,30]
[314609070,1708450322579,-500.0,0.00048767,30]
[314609071,1708450322589,-500.0,0.00048767,30]
[314609072,1708450322600,-500.0,0.00048767,30]
[314609073,1708450322610,-500.0,0.00048767,30]
[314609074,1708450322620,-151.0,0.00048767,14]
[314609075,1708450322635,-500.0,0.00048767,30]
[314609076,1708450322646,-500.0,0.00048767,30]
[314609077,1708450322655,-500.0,0.00048767,30]
[314609078,1708450322665,-500.0,0.00048767,30]
[314609079,1708450322676,-500.0,0.00048767,30]
[314609080,1708450322686,-500.0,0.00048767,30]
[314609081,1708450322695,-500.0,0.00048767,30]
[314609082,1708450322706,-500.0,0.00048767,30]
[314609083,1708450322715,-500.0,0.00048767,30]
[314609084,1708450322725,-500.0,0.00048767,30]
[314609085,1708450322734,-500.0,0.00048767,30]
[314609086,1708450322744,-237.56405658,0.00048767,30]
[314609087,1708450322754,-500.0,0.00048767,30]
[314609088,1708450322763,-415.4926533,0.00048767,30]
[314609089,1708450322772,-500.0,0.00048767,30]
[314609090,1708450322782,-1044.252236,0.00048767,14]
[314609091,1708450322791,-1109.89,0.00048767,30]
[314609092,1708450322801,-500.0,0.00048767,30]
[314609093,1708450322811,-1044.252236,0.00048767,14]
[314609094,1708450322821,-500.0,0.00048767,30]
[314609095,1708450322830,-500.0,0.00048767,30]
[314609096,1708450322840,-500.0,0.00048767,30]
[314609097,1708450322850,-500.0,0.00048767,30]
[314609098,1708450322861,-990.69,0.00048767,30]
[314609099,1708450322871,-619.250431,0.00048767,14]
[314609100,1708450322884,-500.0,0.00048767,30]
[314609101,1708450322893,-619.250431,0.00048767,14]
[314609102,1708450322902,-276.31,0.00048767,30]
[314609103,1708450322911,-585.8,0.00048767,30]
[314609104,1708450322921,-627.6,0.00048767,30]
[314609105,1708450322931,-500.0,0.00048767,30]
[314609106,1708450322940,-500.0,0.00048767,30]
[314609107,1708450322950,-2790.94,0.00048767,30]
[314609108,1708450322960,-151.0,0.00048767,14]
[314609109,1708450322969,-872.54,0.00048767,30]
[314609110,1708450322978,-500.0,0.00048767,30]
[314609111,1708450322989,-500.0,0.00048767,30]
[314609112,1708450323000,-500.0,0.00048767,30]
[314609113,1708450323009,-500.0,0.00048767,30]
[314609114,1708450323019,-151.0,0.00048767,14]
[314609115,1708450323029,-437.5925,0.00048767,30]
[314609116,1708450323039,-500.0,0.00048767,30]
[314609117,1708450323049,-500.0,0.00048767,30]
[314609118,1708450323058,-151.377514,0.00048767,14]
[314609119,1708450323067,-500.0,0.00048767,30]
[314609120,1708450323076,-500.0,0.00048767,30]
[314609121,1708450323085,-584.12,0.00048767,30]
[314609122,1708450323095,-500.0,0.00048767,30]
[314609123,1708450323104,-500.0,0.00048767,30]
[314609124,1708450323114,-500.0,0.00048767,30]
[314609125,1708450323123,-500.0,0.00048767,30]
[314609126,1708450323137,-500.0,0.00048767,30]
[314609127,1708450323146,-500.0,0.00048767,30]
[314609128,1708450323156,-500.0,0.00048767,30]
[314609129,1708450323165,-360.36872431,0.00048767,30]
[314609130,1708450323174,-500.0,0.00048767,30]
[314609131,1708450323183,-506.93,0.00048767,30]
[314609132,1708450323192,-500.0,0.00048767,30]
[314609133,1708450323203,-624.93138568,0.00048767,30]
[314609134,1708450323213,-253.45,0.00048767,30]
[314609135,1708450323227,-500.0,0.00048767,30]
[314609136,1708450323237,-500.0,0.00048767,30]
[314609137,1708450323248,-288.57306526,0.00048767,30]
[314609138,1708450323260,-500.0,0.00048767,30]
[314609139,1708450323271,-713.45,0.00048767,30]
[314609140,1708450323288,-500.0,0.00048767,30]
[314609141,1708450323298,-500.0,0.00048767,30]
[314609142,1708450323308,-2162.43,0.00048767,30]
[314609143,1708450323318,-500.0,0.00048767,30]
[314609144,1708450323328,-500.0,0.00048767,30]
[314609145,1708450323338,-500.0,0.00048767,30]
[314609146,1708450323350,-500.0,0.00048767,30]
[314609147,1708450323361,-552.52,0.00048767,30]
[314609148,1708450323371,-875.54,0.00048767,30]
[314609149,1708450323384,-1508.534788,0.00048767,14]
[314609150,1708450323394,-500.0,0.00048767,30]
[314609151,1708450323404,-584.88,0.00048767,30]
[314609152,1708450323413,-500.0,0.00048767,30]
[314609153,1708450323423,-1508.534788,0.00048767,14]
[314609154,1708450323433,-589.12174046,0.00048767,30]
[314609155,1708450323443,-530.19,0.00048767,30]
[314609156,1708450323453,-368.479906,0.00048767,14]
[314609157,1708450323463,-500.0,0.00048767,30]
[314609158,1708450323472,-500.0,0.00048767,30]
[314609159,1708450323482,-500.0,0.00048767,30]
[314609160,1708450323492,-500.0,0.00048767,30]
[314609161,1708450323501,-368.479906,0.00048767,14]
[314609162,1708450323511,-500.0,0.00048767,30]
[314609163,1708450323520,-151.0,0.00048767,14]
[314609164,1708450323530,-163.011507,0.00048767,14]
[314609165,1708450323539,-17252.43939243,0.0004877,2]
[314609166,1708450323550,-154.33839749,0.00048772,30]
[314609167,1708450323560,-154.33839749,0.0004878,30]
[314609168,1708450323570,-150.72003919,0.00048782,30]
[314609169,1708450323580,-951.37034958,0.00048783,30]
[314609170,1708450323590,-153.19552475,0.00048793,30]
[314609171,1708450323599,-2331.50411107,0.000488,120]
[314609172,1708450323609,-8160.18528488,0.000488,30]
[314609173,1708450323623,-153.0,0.00048819,30]
[314609174,1708450323636,-177.73354056,0.00048826,30]
[314609175,1708450323645,-167.49074302,0.00048857,30]
[314609176,1708450323655,-208.0,0.0004886,30]
[314609177,1708450323665,-210.0,0.0004886,30]
[314609178,1708450323674,-290.268281,0.00048867,14]
[314609179,1708450323684,-290.268281,0.00048867,14]
[314609180,1708450323693,-1603.6400834,0.00048867,2]
[314609181,1708450323703,-177.73354057,0.00048871,30]
[314609182,1708450323713,-156.11216471,0.00048875,30]
[314609183,1708450323722,-150.0,0.00048886,8]
[314609184,1708450323732,-150.0,0.0004889,30]
[314609185,1708450323741,-150.0,0.0004889,30]
[314609186,1708450323752,-150.0,0.0004889,30]
[314609187,1708450323762,-777.0,0.000489,120]
[314609188,1708450323771,-200.0,0.000489,24]
[314609189,1708450323780,-13144.98858942,0.000489,10]
[314609190,1708450323789,-637.48,0.000489,7]
[314609191,1708450323799,-500.0,0.000489,7]
[314609192,1708450323808,-182.45349069,0.000489,62]
[314609193,1708450323817,-155.18298927,0.00048919,30]
[314609194,1708450323827,-951.37034958,0.00048934,30]
[314609195,1708450323836,-6761.4,0.00048956,30]
[314609196,1708450323846,-6761.4,0.00048956,30]
[314609197,1708450323855,-154.33839749,0.00048964,30]
[314609198,1708450323865,-3073.5247598,0.00048966,2]
[314609199,1708450323875,-38554.1622546,0.00048966,2]
[314609200,1708450323891,-49841.0141713,0.00048966,2]
[314609201,1708450323900,-200.0,0.00048987,72]
[314609202,1708450323911,-17172.52106453,0.0004899,30]
[314609203,1708450323920,-199.07219596,0.00048994,30]
[314609204,1708450323930,-150.0,0.00048997,2]
[314609205,1708450323939,-100000.0,0.00049,39]
[314609206,1708450323949,-998.320679,0.00049,30]
[314609207,1708450323958,-255.40425517,0.00049,4]
[314609208,1708450323968,-21080.86743,0.00049,10]
[314609209,1708450323977,-54227.9687147,0.00049,120]
[314609210,1708450323987,-4520.31190942,0.00049,2]
[314609211,1708450323996,-1478.93106007,0.00049,30]
[314609212,1708450324006,-13267.68986796,0.00049,10]
[314609213,1708450324015,-318.0,0.00049,39]
[314609214,1708450324025,-151.0,0.00049,14]
[314609215,1708450324034,-300.0,0.00049,50]
[314609216,1708450324044,-568.53268569,0.00049,15]
[314609217,1708450324053,-2000.0,0.00049,32]
[314609218,1708450324062,-1672.9838998,0.00049008,2]
[314609219,1708450324072,-155.18298927,0.0004901,30]
[314609220,1708450324082,-951.37034958,0.00049023,30]
[314609221,1708450324092,-150.0,0.00049034,9]
[314609222,1708450324102,-150.0,0.00049038,30]
[314609223,1708450324111,-465.33804511,0.00049041,30]
[314609224,1708450324121,-500.0,0.00049041,30]
[314609225,1708450324133,-392.36,0.00049041,30]
[314609226,1708450324142,-500.0,0.00049041,30]
[314609227,1708450324152,-251.25583385,0.00049041,30]
[314609228,1708450324161,-575.68158086,0.00049041,30]
[314609229,1708450324171,-500.0,0.00049041,2]
[314609230,1708450324180,-1441.53,0.00049041,30]
[314609231,1708450324189,-500.0,0.00049041,30]
[314609232,1708450324198,-500.0,0.00049041,30]
[314609233,1708450324208,-500.0,0.00049041,30]
[314609234,1708450324217,-176.39,0.00049041,30]
[314609235,1708450324227,-500.0,0.00049041,30]
[314609236,1708450324236,-238.43965636,0.00049041,30]
[314609237,1708450324245,-500.0,0.00049041,30]
[314609238,1708450324256,-311.40279987,0.00049041,30]
[314609239,1708450324265,-317.4380509,0.00049041,30]
[314609240,1708450324275,-500.0,0.00049041,30]
[314609241,1708450324285,-500.0,0.00049041,30]
[314609242,1708450324295,-500.0,0.00049041,30]
[314609243,1708450324305,-1270.73,0.00049041,30]
[314609244,1708450324315,-500.0,0.00049041,30]
[314609245,1708450324324,-500.0,0.00049041,30]
[314609246,1708450324334,-500.0,0.00049041,30]
[314609247,1708450324343,-500.0,0.00049041,30]
[314609248,1708450324353,-500.0,0.00049041,30]
[314609249,1708450324364,-500.0,0.00049041,30]
[314609250,1708450324373,-285.63,0.00049041,30]
[314609251,1708450324386,-500.0,0.00049041,30]
[314609252,1708450324395,-500.0,0.00049041,30]
[314609253,1708450324406,-532.70076152,0.00049041,30]
[314609254,1708450324415,-500.0,0.00049041,30]
[314609255,1708450324424,-563.35992792,0.00049041,30]
[314609256,1708450324434,-500.0,0.00049041,30]
[314609257,1708450324443,-561.29,0.00049041,30]
[314609258,1708450324452,-500.0,0.00049041,30]
[314609259,1708450324461,-500.0,0.00049041,30]
[314609260,1708450324471,-500.0,0.00049041,30]
[314609261,1708450324481,-500.0,0.00049041,30]
[314609262,1708450324490,-500.0,0.00049041,30]
[314609263,1708450324499,-644.49,0.00049041,30]
[314609264,1708450324512,-734.91,0.00049041,30]
[314609265,1708450324526,-500.0,0.00049041,30]
[314609266,1708450324536,-500.0,0.00049041,30]
[314609267,1708450324545,-304.08547932,0.00049041,30]
[314609268,1708450324556,-500.0,0.00049041,30]
[314609269,1708450324565,-500.0,0.00049041,30]
[314609270,1708450324574,-500.0,0.00049041,30]
[314609271,1708450324584,-500.0,0.00049041,30]
[314609272,1708450324594,-500.68,0.00049041,30]
[314609273,1708450324610,-563.75,0.00049041,30]
[314609274,1708450324620,-500.0,0.00049041,30]
[314609275,1708450324629,-500.0,0.00049041,30]
[314609276,1708450324639,-233.20718076,0.00049041,30]
[314609277,1708450324647,-523.40949022,0.00049041,30]
[314609278,1708450324657,-500.0,0.00049041,30]
[314609279,1708450324667,-155.30025378,0.00049041,30]
[314609280,1708450324677,-500.0,0.00049041,30]
[314609281,1708450324687,-500.0,0.00049041,30]
[314609282,1708450324697,-150.0,0.00049041,30]
[314609283,1708450324706,-500.0,0.00049041,30]
[314609284,1708450324717,-500.0,0.00049041,30]
[314609285,1708450324726,-572.48281566,0.00049041,30]
[314609286,1708450324735,-500.0,0.00049041,30]
[314609287,1708450324745,-644.95,0.00049041,30]
[314609288,1708450324755,-633.07285506,0.00049041,30]
[314609289,1708450324765,-2166.93,0.00049041,30]
[314609290,1708450324774,-500.0,0.00049041,30]
[314609291,1708450324784,-500.0,0.00049041,30]
[314609292,1708450324794,-626.05,0.00049041,30]
[314609293,1708450324803,-500.0,0.00049041,30]
[314609294,1708450324814,-500.0,0.00049041,30]
[314609295,1708450324823,-500.0,0.00049041,30]
[314609296,1708450324834,-500.0,0.00049041,30]
[314609297,1708450324845,-482.67913496,0.00049041,30]
[314609298,1708450324855,-500.0,0.00049041,30]
[314609299,1708450324865,-500.0,0.00049041,30]
[314609300,1708450324876,-500.0,0.00049041,30]
[314609301,1708450324887,-2578.86,0.00049041,30]
[314609302,1708450324896,-500.0,0.00049041,30]
[314609303,1708450324905,-553.06947301,0.00049041,30]
[314609304,1708450324914,-542.64,0.00049041,30]
[314609305,1708450324923,-500.0,0.00049041,30]
[314609306,1708450324934,-500.0,0.00049041,30]
[314609307,1708450324943,-500.0,0.00049041,30]
[314609308,1708450324952,-500.0,0.00049041,30]
[314609309,1708450324962,-500.0,0.00049041,30]
[314609310,1708450324971,-5958.34,0.00049041,30]
[314609311,1708450324981,-500.0,0.00049041,30]
[314609312,1708450324991,-500.0,0.00049041,30]
[314609313,1708450325000,-500.0,0.00049041,30]
[314609314,1708450325010,-500.0,0.00049041,30]
[314609315,1708450325020,-500.0,0.00049041,30]
[314609316,1708450325030,-9351.93,0.00049041,30]
[314609317,1708450325040,-500.0,0.00049041,30]
[314609318,1708450325050,-406.28,0.00049041,30]
[314609319,1708450325059,-500.0,0.00049041,30]
[314609320,1708450325069,-169.06,0.00049041,30]
[314609321,1708450325079,-500.0,0.00049041,30]
[314609322,1708450325089,-1749.56,0.00049041,30]
[314609323,1708450325099,-500.0,0.00049041,30]
[314609324,1708450325109,-194.77626931,0.00049041,30]
[314609325,1708450325119,-1234.3,0.00049041,30]
[314609326,1708450325129,-581.0823735,0.00049041,30]
[314609327,1708450325143,-500.0,0.00049041,30]
[314609328,1708450325153,-500.0,0.00049041,30]
[314609329,1708450325162,-500.0,0.00049041,30]
[314609330,1708450325172,-618.15172176,0.00049041,30]
[314609331,1708450325183,-514.34,0.00049041,30]
[314609332,1708450325194,-795.95,0.00049041,30]
[314609333,1708450325204,-500.0,0.00049041,30]
[314609334,1708450325213,-500.0,0.00049041,30]
[314609335,1708450325223,-500.0,0.00049041,30]
[314609336,1708450325491,-500.0,0.00049041,30]
[314609337,1708450325502,-617.3856145,0.00049041,30]
[314609338,1708450325511,-500.0,0.00049041,30]
[314609339,1708450325521,-500.0,0.00049041,30]
[314609340,1708450325530,-555.69911253,0.00049041,30]
[314609341,1708450325540,-500.0,0.00049041,30]
[314609342,1708450325551,-580.83,0.00049041,30]
[314609343,1708450325561,-153.44642012,0.00049041,30]
[314609344,1708450325571,-500.0,0.00049041,30]
[314609345,1708450325581,-468.65858456,0.00049041,30]
[314609346,1708450325592,-500.0,0.00049041,30]
[314609347,1708450325603,-226.66264469,0.00049041,30]
[314609348,1708450325613,-500.0,0.00049041,30]
[314609349,1708450325623,-197.32,0.00049041,30]
[314609350,1708450325635,-500.0,0.00049041,30]
[314609351,1708450325646,-1571.69,0.00049041,30]
[314609352,1708450325655,-500.0,0.00049041,30]
[314609353,1708450325665,-500.0,0.00049041,30]
[314609354,1708450325675,-889.56,0.00049041,30]
[314609355,1708450325684,-441.15523662,0.00049041,30]
[314609356,1708450325694,-500.0,0.00049041,30]
[314609357,1708450325704,-2031.89,0.00049041,30]
[314609358,1708450325715,-500.0,0.00049041,30]
[314609359,1708450325724,-500.0,0.00049041,30]